fUSD/lending_fUSD_20240220
["ID","MTS","AMOUNT","RATE_DAILY","PERIOD"]
[314530353,1708405869359,-150.0,0.0003686,2]
[314530354,1708405869368,-500.0,0.00036873,2]
[314530355,1708405869378,-500.0,0.00036873,2]
[314530356,1708405869387,-500.0,0.00036873,2]
[314530357,1708405869396,-217.64331962,0.00036875,8]
[314530358,1708405869406,-150.0,0.00036876,2]
[314530359,1708405869415,-162.32,0.00036879,2]
[314530360,1708405869425,-200.88428895,0.0003688,9]
[314530361,1708405869434,-1010.53812162,0.0003688,2]
[314530362,1708405869444,-3327.55730716,0.0003688,2]
[314530363,1708405869453,-150.0,0.00036897,2]
[314530364,1708405869462,-295.03687102,0.000369,8]
[314530365,1708405869471,-1500.0,0.000369,22]
[314530366,1708405869481,-3964.56826218,0.00036921,10]
[314530367,1708405869491,-6044173.56145614,0.0003693,4]
[314530368,1708405869500,-1719721.51782742,0.0003693,2]
[314530369,1708405869509,-177.58,0.00036935,2]
[314530370,1708405869519,-1020.38,0.00036938,2]
[314530371,1708405869528,-1222.32,0.00036938,2]
[314530372,1708405869540,-500.0,0.00036938,2]
[314530373,1708405869574,-1934.95,0.00036938,2]
[314530374,1708405869583,-795.84,0.00036938,2]
[314530375,1708405869593,-1767.15,0.00036938,2]
[314530376,1708405869602,-1015.81,0.00036938,2]
[314530377,1708405869611,-734.77,0.00036938,2]
[314530378,1708405869621,-1939.44,0.00036938,2]
[314530379,1708405869630,-1351.97,0.00036938,2]
[314530380,1708405869640,-1088.16,0.00036938,2]
[314530381,1708405869650,-1475.67,0.00036938,2]
[314530382,1708405869662,-1038.28,0.00036938,2]
[314530383,1708405869671,-1154.43,0.00036938,2]
[314530384,1708405869681,-1030.29,0.00036938,2]
[314530385,1708405869690,-2781.04,0.00036938,2]
[314530386,1708405869699,-524.0,0.00036938,2]
[314530387,1708405869708,-677.33,0.00036938,2]
[314530388,1708405869718,-4170.19,0.00036938,2]
[314530389,1708405869727,-500.0,0.00036938,2]
[314530390,1708405869736,-1974.77,0.00036938,2]
[314530391,1708405869746,-3026.21,0.00036938,2]
[314530392,1708405869755,-686.23,0.00036938,2]
[314530393,1708405869765,-764.58,0.00036938,2]
[314530394,1708405869774,-765.68,0.00036938,2]
[314530395,1708405869784,-1513.9,0.00036938,2]
[314530396,1708405869794,-1299.32,0.00036938,2]
[314530397,1708405869803,-940.65,0.00036938,2]
[314530398,1708405869812,-1988.81,0.00036938,2]
[314530399,1708405869821,-921.1,0.00036939,2]
[314530400,1708405869830,-1730.62,0.00036939,2]
[314530401,1708405869839,-1958.76,0.00036939,2]
[314530402,1708405869848,-1249.32,0.00036939,2]
[314530403,1708405869857,-902.22,0.00036939,2]
[314530404,1708405869867,-664.99,0.00036939,2]
[314530405,1708405869876,-669.7,0.00036939,2]
[314530406,1708405869885,-3868.49,0.00036939,2]
[314530407,1708405869894,-1885.97,0.00036939,2]
[314530408,1708405869905,-658.2,0.00036939,2]
[314530409,1708405869913,-1639.72,0.00036939,2]
[314530410,1708405869922,-1006.78,0.00036939,2]
[314530411,1708405869932,-673.99,0.00036939,2]
[314530412,1708405869941,-500.0,0.00036939,2]
[314530413,1708405869950,-505.6,0.00036939,2]
[314530414,1708405869959,-1619.9,0.00036939,2]
[314530415,1708405869969,-927.69,0.00036939,2]
[314530416,1708405869981,-2967.23,0.00036939,2]
[314530417,1708405869990,-1060.89,0.00036939,2]
[314530418,1708405869999,-1666.19,0.00036939,2]
[314530419,1708405870008,-720.79,0.00036939,2]
[314530420,1708405870018,-1070.65,0.00036939,2]
[314530421,1708405870028,-500.84,0.00036939,2]
[314530422,1708405870040,-999.67,0.00036939,2]
[314530423,1708405870050,-850.24,0.00036939,2]
[314530424,1708405870060,-1626.55,0.00036939,2]
[314530425,1708405870069,-873.93,0.00036939,2]
[314530426,1708405870079,-500.0,0.00036939,2]
[314530427,1708405870089,-1425.91,0.00036939,2]
[314530428,1708405870098,-150.0,0.00036946,2]
[314530429,1708405870107,-768.9669357,0.00036954,2]
[314530430,1708405870118,-203.88043059,0.00036965,7]
[314530431,1708405870127,-200.0,0.00036965,7]
[314530432,1708405870137,-200.0,0.00036965,7]
[314530433,1708405870146,-150.0,0.00036971,2]
[314530434,1708405870156,-151.74142693,0.00036973,2]
[314530435,1708405870164,-6628.3449256,0.00036975,2]
[314530436,1708405870173,-5692.2310467,0.00036975,2]
[314530437,1708405870182,-6266.4670721,0.00036975,2]
[314530438,1708405870192,-7059.9914848,0.00036975,2]
[314530439,1708405870201,-94122.374562,0.00036975,2]
[314530440,1708405870210,-1602.9243947,0.00036975,2]
[314530441,1708405870219,-21299.2029246,0.00036975,2]
[314530442,1708405870229,-300.0,0.00036977,2]
[314530443,1708405870238,-162.38833905,0.00036979,2]
[314530444,1708405870248,-4979.89112243,0.00036979,2]
[314530445,1708405870257,-2614287.6746719,0.0003698,2]
[314530446,1708405870266,-155.04309616,0.0003698,4]
[314530447,1708405870276,-2000.0,0.0003698,2]
[314530448,1708405870285,-200.0,0.0003698,2]
[314530449,1708405870294,-2000.0,0.0003698,2]
[314530450,1708405870303,-200.0,0.0003698,2]
[314530451,1708405870312,-584.61515562,0.0003698,2]
[314530452,1708405870321,-508.36324065,0.0003698,2]
[314530453,1708405870330,-2000.0,0.0003698,2]
[314530454,1708405870339,-200.0,0.0003698,2]
[314530455,1708405870349,-200.0,0.0003698,2]
[314530456,1708405870358,-1192.152838,0.00036986,2]
[314530457,1708405870367,-1158.84887,0.00036986,2]
[314530458,1708405870376,-2947.420759,0.00036986,2]
[314530459,1708405870386,-150.0,0.00036986,2]
[314530460,1708405870395,-300.0,0.00036986,7]
[314530461,1708405870404,-450.0,0.00036986,12]
[314530462,1708405870414,-600.0,0.00036986,17]
[314530463,1708405870423,-750.0,0.00036986,22]
[314530464,1708405870433,-900.0,0.00036986,27]
[314530465,1708405870442,-1050.0,0.00036986,32]
[314530466,1708405870451,-1120.86121668,0.00036986,37]
[314530467,1708405870461,-824.66,0.00036986,2]
[314530468,1708405870470,-300.0,0.00036988,2]
[314530469,1708405870479,-200000.0,0.00037,2]
[314530470,1708405870488,-314.68733397,0.00037,4]
[314530471,1708405870498,-150.0,0.00037,10]
[314530472,1708405870508,-1050.0,0.00037,3]
[314530473,1708405870517,-1000.0,0.00037,6]
[314530474,1708405870526,-1032.0,0.00037,6]
[314530475,1708405870536,-156.0,0.00037011,7]
[314530476,1708405870546,-514.51811362,0.00037012,8]
[314530477,1708405870555,-300.0,0.00037012,2]
[314530478,1708405870565,-150.0,0.00037025,2]
[314530479,1708405870574,-1500.0,0.00037031,2]
[314530480,1708405870583,-150.0,0.00037035,2]
[314530481,1708405870592,-150.0,0.00037039,2]
[314530482,1708405870602,-373.3604994,0.00037044,5]
[314530483,1708405870611,-510.83,0.00037047,2]
[314530484,1708405870620,-500.0,0.00037047,2]
[314530485,1708405870629,-500.0,0.00037047,2]
[314530486,1708405870639,-791.81,0.00037047,2]
[314530487,1708405870648,-500.0,0.00037047,2]
[314530488,1708405870659,-500.0,0.00037047,2]
[314530489,1708405870668,-500.0,0.00037047,2]
[314530490,1708405870677,-500.0,0.00037047,2]
[314530491,1708405870686,-500.0,0.00037047,2]
[314530492,1708405870696,-500.0,0.00037047,2]
[314530493,1708405870705,-513.26,0.00037047,2]
[314530494,1708405870714,-500.0,0.00037047,2]
[314530495,1708405870724,-500.0,0.00037047,2]
[314530496,1708405870733,-500.0,0.00037047,2]
[314530497,1708405870742,-500.0,0.00037047,2]
[314530498,1708405870752,-500.0,0.00037047,2]
[314530499,1708405870761,-500.0,0.00037047,2]
[314530500,1708405870770,-500.0,0.00037047,2]
[314530501,1708405870779,-500.0,0.00037047,2]
[314530502,1708405870946,-500.0,0.00037047,2]
[314530503,1708405870956,-500.0,0.00037047,2]
[314530504,1708405870966,-500.0,0.00037047,2]
[314530505,1708405870979,-644.76,0.00037047,2]
[314530506,1708405870988,-500.0,0.00037047,2]
[314530507,1708405870998,-500.0,0.00037047,2]
[314530508,1708405871007,-500.0,0.00037047,2]
[314530509,1708405871018,-500.0,0.00037047,2]
[314530510,1708405871028,-500.0,0.00037047,2]
[314530511,1708405871038,-500.0,0.00037047,2]
[314530512,1708405871047,-500.0,0.00037047,2]
[314530513,1708405871058,-565.81,0.00037047,2]
[314530514,1708405871067,-500.0,0.00037047,2]
[314530515,1708405871077,-500.0,0.00037047,2]
[314530516,1708405871086,-500.0,0.00037047,2]
[314530517,1708405871095,-500.0,0.00037047,2]
[314530518,1708405871105,-500.0,0.00037047,2]
[314530519,1708405871114,-500.0,0.00037047,2]
[314530520,1708405871123,-500.0,0.00037047,2]
[314530521,1708405871133,-500.0,0.00037047,2]
[314530522,1708405871143,-500.0,0.00037047,2]
[314530523,1708405871153,-500.0,0.00037047,2]
[314530524,1708405871163,-500.0,0.00037047,2]
[314530525,1708405871172,-500.0,0.00037047,2]
[314530526,1708405871181,-551.79,0.00037047,2]
[314530527,1708405871191,-581.45,0.00037047,2]
[314530528,1708405871200,-500.0,0.00037047,2]
[314530529,1708405871209,-500.0,0.00037047,2]
[314530530,1708405871218,-523.73,0.00037047,2]
[314530531,1708405871227,-500.0,0.00037047,2]
[314530532,1708405871236,-515.57,0.00037047,2]
[314530533,1708405871245,-720.38,0.00037047,2]
[314530534,1708405871255,-500.0,0.00037047,2]
[314530535,1708405871264,-500.0,0.00037047,2]
[314530536,1708405871273,-500.0,0.00037047,2]
[314530537,1708405871282,-500.0,0.00037047,2]
[314530538,1708405871291,-500.0,0.00037047,2]
[314530539,1708405871301,-500.0,0.00037047,2]
[314530540,1708405871310,-500.0,0.00037047,2]
[314530541,1708405871319,-500.0,0.00037047,2]
[314530542,1708405871328,-500.0,0.00037047,2]
[314530543,1708405871338,-547.53,0.00037047,2]
[314530544,1708405871347,-500.0,0.00037047,2]
[314530545,1708405871356,-500.0,0.00037047,2]
[314530546,1708405871366,-500.0,0.00037047,2]
[314530547,1708405871376,-500.0,0.00037047,2]
[314530548,1708405871385,-500.0,0.00037047,2]
[314530549,1708405871394,-500.0,0.00037047,2]
[314530550,1708405871405,-500.0,0.00037047,2]
[314530551,1708405871415,-500.0,0.00037047,2]
[314530552,1708405871424,-500.0,0.00037047,2]
[314530553,1708405871434,-500.0,0.00037047,2]
[314530554,1708405871443,-500.0,0.00037047,2]
[314530555,1708405871452,-500.0,0.00037047,2]
[314530556,1708405871461,-538.99,0.00037047,2]
[314530557,1708405871471,-500.0,0.00037047,2]
[314530558,1708405871480,-500.0,0.00037047,2]
[314530559,1708405871490,-500.0,0.00037047,2]
[314530560,1708405871499,-500.0,0.00037047,2]
[314530561,1708405871508,-815.58,0.00037047,2]
[314530562,1708405871518,-500.0,0.00037047,2]
[314530563,1708405871528,-500.0,0.00037047,2]
[314530564,1708405871537,-500.0,0.00037047,2]
[314530565,1708405871547,-500.0,0.00037047,2]
[314530566,1708405871556,-500.0,0.00037047,2]
[314530567,1708405871565,-500.0,0.00037047,2]
[314530568,1708405871575,-606.1,0.00037047,2]
[314530569,1708405871584,-500.0,0.00037047,2]
[314530570,1708405871593,-825.71,0.00037047,2]
[314530571,1708405871603,-500.0,0.00037047,2]
[314530572,1708405871612,-500.0,0.00037047,2]
[314530573,1708405871621,-500.0,0.00037047,2]
[314530574,1708405871630,-517.1102987,0.00037048,2]
[314530575,1708405871639,-500.0,0.00037048,2]
[314530576,1708405871649,-500.0,0.00037048,2]
[314530577,1708405871659,-500.0,0.00037048,2]
[314530578,1708405871668,-500.0,0.00037048,2]
[314530579,1708405871677,-500.0,0.00037048,2]
[314530580,1708405871686,-500.0,0.00037048,2]
[314530581,1708405871695,-500.0,0.00037048,2]
[314530582,1708405871704,-500.0,0.00037048,2]
[314530583,1708405871713,-500.0,0.00037048,2]
[314530584,1708405871722,-500.0,0.00037048,2]
[314530585,1708405871732,-500.0,0.00037048,2]
[314530586,1708405871741,-500.0,0.00037048,2]
[314530587,1708405871750,-500.0,0.00037048,2]
[314530588,1708405871759,-500.0,0.00037048,2]
[314530589,1708405871768,-500.0,0.00037048,2]
[314530590,1708405871777,-500.0,0.00037048,2]
[314530591,1708405871787,-500.0,0.00037048,2]
[314530592,1708405871797,-271.11056082,0.00037048,2]
[314530593,1708405871806,-500.0,0.00037048,2]
[314530594,1708405871815,-500.0,0.00037048,2]
[314530595,1708405871824,-500.0,0.00037048,2]
[314530596,1708405871834,-500.0,0.00037048,2]
[314530597,1708405871843,-500.0,0.00037048,2]
[314530598,1708405871852,-500.0,0.00037048,2]
[314530599,1708405871862,-500.0,0.00037048,2]
[314530600,1708405871872,-500.0,0.00037048,2]
[314530601,1708405871881,-500.0,0.00037048,2]
[314530602,1708405871891,-500.0,0.00037048,2]
[314530603,1708405871901,-500.0,0.00037048,2]
[314530604,1708405871910,-500.0,0.00037048,2]
[314530605,1708405871920,-474.44425515,0.00037048,2]
[314530606,1708405871929,-500.0,0.00037048,2]
[314530607,1708405871939,-500.0,0.00037048,2]
[314530608,1708405871948,-500.0,0.00037048,2]
[314530609,1708405871957,-295.95256341,0.00037048,2]
[314530610,1708405871967,-522.31074557,0.00037048,2]
[314530611,1708405871979,-500.0,0.00037048,2]
[314530612,1708405871987,-500.0,0.00037048,2]
[314530613,1708405871997,-500.0,0.00037048,2]
[314530614,1708405872006,-500.0,0.00037048,2]
[314530615,1708405872016,-500.0,0.00037048,2]
[314530616,1708405872026,-500.0,0.00037048,2]
[314530617,1708405872035,-500.0,0.00037048,2]
[314530618,1708405872045,-500.0,0.00037048,2]
[314530619,1708405872055,-500.0,0.00037048,2]
[314530620,1708405872065,-500.0,0.00037048,2]
[314530621,1708405872075,-500.0,0.00037048,2]
[314530622,1708405872084,-500.0,0.00037048,2]
[314530623,1708405872093,-500.0,0.00037048,2]
[314530624,1708405872102,-500.0,0.00037048,2]
[314530625,1708405872112,-500.0,0.00037048,2]
[314530626,1708405872122,-500.0,0.00037048,2]
[314530627,1708405872131,-500.0,0.00037048,2]
[314530628,1708405872141,-500.0,0.00037048,2]
[314530629,1708405872150,-500.0,0.00037048,2]
[314530630,1708405872160,-500.0,0.00037048,2]
[314530631,1708405872169,-810.33,0.00037048,2]
[314530632,1708405872178,-500.0,0.00037048,2]
[314530633,1708405872187,-500.0,0.00037048,2]
[314530634,1708405872196,-884.12,0.00037048,2]
[314530635,1708405872205,-500.0,0.00037048,2]
[314530636,1708405872215,-743.52,0.00037048,2]
[314530637,1708405872223,-906.89,0.00037048,2]
[314530638,1708405872233,-500.0,0.00037048,2]
[314530639,1708405872243,-500.0,0.00037048,2]
[314530640,1708405872251,-587.64,0.00037048,2]
[314530641,1708405872261,-500.0,0.00037048,2]
[314530642,1708405872270,-500.0,0.00037048,2]
[314530643,1708405872279,-357.36174242,0.00037048,2]
[314530644,1708405872288,-500.0,0.00037048,2]
[314530645,1708405872298,-500.0,0.00037048,2]
[314530646,1708405872307,-500.0,0.00037048,2]
[314530647,1708405872317,-500.0,0.00037048,2]
[314530648,1708405872326,-500.0,0.00037048,2]
[314530649,1708405872335,-500.0,0.00037048,2]
[314530650,1708405872344,-305.89709778,0.00037048,2]
[314530651,1708405872354,-500.0,0.00037048,2]
[314530652,1708405872364,-500.0,0.00037048,2]
[314530653,1708405872374,-648.5,0.00037048,2]
[314530654,1708405872383,-500.0,0.00037048,2]
[314530655,1708405872393,-500.0,0.00037048,2]
[314530656,1708405872402,-590.95,0.00037048,2]
[314530657,1708405872411,-500.0,0.00037049,2]
[314530658,1708405872420,-500.0,0.00037049,2]
[314530659,1708405872430,-500.0,0.00037049,2]
[314530660,1708405872439,-500.0,0.00037049,2]
[314530661,1708405872449,-575.39,0.00037049,2]
[314530662,1708405872458,-626.27,0.00037049,2]
[314530663,1708405872467,-500.0,0.00037049,2]
[314530664,1708405872477,-994.41,0.00037049,2]
[314530665,1708405872485,-500.0,0.00037049,2]
[314530666,1708405872495,-1239.4,0.00037049,2]
[314530667,1708405872504,-500.0,0.00037049,2]
[314530668,1708405872514,-500.0,0.00037049,2]
[314530669,1708405872524,-500.0,0.00037049,2]
[314530670,1708405872533,-500.0,0.00037049,2]
[314530671,1708405872542,-655.95,0.00037049,2]
[314530672,1708405872552,-587.57,0.00037049,2]
[314530673,1708405872561,-643.06,0.00037049,2]
[314530674,1708405872570,-894.33,0.00037049,2]
[314530675,1708405872580,-500.0,0.00037049,2]
[314530676,1708405872589,-500.0,0.00037049,2]
[314530677,1708405872598,-500.0,0.00037049,2]
[314530678,1708405872607,-500.0,0.00037049,2]
[314530679,1708405872617,-593.69,0.00037049,2]
[314530680,1708405872627,-688.4,0.00037049,2]
[314530681,1708405872636,-500.0,0.00037049,2]
[314530682,1708405872645,-526.08046614,0.00037049,2]
[314530683,1708405872655,-500.0,0.00037049,2]
[314530684,1708405872664,-500.0,0.00037049,2]
[314530685,1708405872673,-500.0,0.00037049,2]
[314530686,1708405872683,-500.0,0.00037049,2]
[314530687,1708405872692,-500.0,0.00037049,2]
[314530688,1708405872701,-605.41,0.00037049,2]
[314530689,1708405872711,-547.12,0.00037049,2]
[314530690,1708405872720,-500.0,0.00037049,2]
[314530691,1708405872730,-579.04,0.00037049,2]
[314530692,1708405872739,-500.0,0.00037049,2]
[314530693,1708405872748,-500.0,0.00037049,2]
[314530694,1708405872758,-300.0,0.00037062,2]
[314530695,1708405872767,-311.05124246,0.0003707,2]
[314530696,1708405872776,-1500.0,0.00037071,2]
[314530697,1708405872785,-2558.41,0.00037075,2]
[314530698,1708405872795,-3964.56826218,0.0003708,10]
[314530699,1708405872804,-150.0,0.00037085,2]
[314530700,1708405872814,-1500.0,0.00037096,2]
[314530701,1708405872824,-93750.68,0.000371,7]
[314530702,1708405872833,-40082.05,0.000371,7]
[314530703,1708405872843,-28558.24345411,0.000371,2]
[314530704,1708405872852,-5481.26787388,0.000371,2]
[314530705,1708405872861,-153.34,0.00037104,2]
[314530706,1708405872871,-2343.98,0.00037111,2]
[314530707,1708405872880,-1165.67,0.00037111,2]
[314530708,1708405872889,-543.99,0.00037111,2]
[314530709,1708405872898,-649.17,0.00037111,2]
[314530710,1708405872907,-882.84,0.00037111,2]
[314530711,1708405872916,-911.74,0.00037111,2]
[314530712,1708405872925,-2167.09,0.00037111,2]
[314530713,1708405872934,-4210.64,0.00037111,2]
[314530714,1708405872943,-19216.17,0.00037111,2]
[314530715,1708405872952,-948.0,0.00037111,2]
[314530716,1708405872962,-500.0,0.00037111,2]
[314530717,1708405872974,-1093.22,0.00037111,2]
[314530718,1708405872983,-1692.44,0.00037111,2]
[314530719,1708405872992,-500.0,0.00037111,2]
[314530720,1708405873002,-1578.14,0.00037111,2]
[314530721,1708405873013,-1099.35,0.00037111,2]
[314530722,1708405873022,-975.65,0.00037111,2]
[314530723,1708405873031,-708.65,0.00037111,2]
[314530724,1708405873042,-6268.26,0.00037111,2]
[314530725,1708405873052,-500.0,0.00037111,2]
[314530726,1708405873062,-500.0,0.00037111,2]
[314530727,1708405873071,-901.49,0.00037111,2]
[314530728,1708405873080,-651.6,0.00037111,2]
[314530729,1708405873089,-1025.4,0.00037111,2]
[314530730,1708405873099,-500.0,0.00037111,2]
[314530731,1708405873108,-3156.54,0.00037111,2]
[314530732,1708405873117,-857.52,0.00037111,2]
[314530733,1708405873126,-1107.07,0.00037111,2]
[314530734,1708405873136,-799.36,0.00037111,2]
[314530735,1708405873145,-833.39,0.00037111,2]
[314530736,1708405873154,-757.3,0.00037111,2]
[314530737,1708405873163,-3560.7,0.00037111,2]
[314530738,1708405873173,-1705.39,0.00037111,2]
[314530739,1708405873182,-789.45,0.00037111,2]
[314530740,1708405873192,-3144.99,0.00037111,2]
[314530741,1708405873201,-5007.03,0.00037111,2]
[314530742,1708405873210,-1314.19,0.00037111,2]
[314530743,1708405873220,-985.9,0.00037111,2]
[314530744,1708405873230,-1051.08,0.00037111,2]
[314530745,1708405873239,-1499.97,0.00037111,2]
[314530746,1708405873249,-7345.36,0.00037111,2]
[314530747,1708405873261,-1204.36,0.00037111,2]
[314530748,1708405873270,-500.0,0.00037111,2]
[314530749,1708405873280,-770.93,0.00037111,2]
[314530750,1708405873290,-2816.2,0.00037111,2]
[314530751,1708405873299,-856.91,0.00037111,2]
[314530752,1708405873308,-566.48,0.00037111,2]
[314530753,1708405873317,-529.69,0.00037111,2]
[314530754,1708405873479,-631.33,0.00037111,2]
[314530755,1708405873488,-934.23,0.00037111,2]
[314530756,1708405873498,-506.06,0.00037111,2]
[314530757,1708405873508,-503.72,0.00037111,2]
[314530758,1708405873517,-763.13,0.00037111,2]
[314530759,1708405873527,-500.0,0.00037111,2]
[314530760,1708405873537,-500.0,0.00037111,2]
[314530761,1708405873546,-802.39,0.00037111,2]
[314530762,1708405873556,-1007.84,0.00037111,2]
[314530763,1708405873565,-800.83,0.00037111,2]
[314530764,1708405873575,-712.66,0.00037111,2]
[314530765,1708405873584,-500.0,0.00037112,2]
[314530766,1708405873593,-500.0,0.00037112,2]
[314530767,1708405873602,-500.0,0.00037112,2]
[314530768,1708405873612,-500.0,0.00037112,2]
[314530769,1708405873621,-1224.75,0.00037112,2]
[314530770,1708405873631,-500.0,0.00037112,2]
[314530771,1708405873641,-546.6,0.00037112,2]
[314530772,1708405873650,-500.0,0.00037112,2]
[314530773,1708405873659,-500.0,0.00037112,2]
[314530774,1708405873668,-500.0,0.00037112,2]
[314530775,1708405873678,-500.0,0.00037112,2]
[314530776,1708405873688,-500.0,0.00037112,2]
[314530777,1708405873698,-510.70455332,0.00037112,2]
[314530778,1708405873707,-500.0,0.00037112,2]
[314530779,1708405873717,-500.0,0.00037112,2]
[314530780,1708405873726,-500.0,0.00037112,2]
[314530781,1708405873736,-500.0,0.00037112,2]
[314530782,1708405873745,-500.0,0.00037112,2]
[314530783,1708405873754,-1502.26,0.00037112,2]
[314530784,1708405873763,-500.0,0.00037112,2]
[314530785,1708405873773,-500.0,0.00037112,2]
[314530786,1708405873782,-855.67,0.00037112,2]
[314530787,1708405873791,-500.0,0.00037112,2]
[314530788,1708405873801,-500.0,0.00037112,2]
[314530789,1708405873810,-537.60583091,0.00037112,2]
[314530790,1708405873819,-500.0,0.00037112,2]
[314530791,1708405873828,-500.0,0.00037112,2]
[314530792,1708405873838,-500.0,0.00037112,2]
[314530793,1708405873848,-500.0,0.00037112,2]
[314530794,1708405873857,-500.0,0.00037112,2]
[314530795,1708405873866,-500.0,0.00037112,2]
[314530796,1708405873876,-500.0,0.00037112,2]
[314530797,1708405873885,-500.0,0.00037112,2]
[314530798,1708405873894,-500.0,0.00037112,2]
[314530799,1708405873904,-515.56665741,0.00037112,2]
[314530800,1708405873913,-500.0,0.00037112,2]
[314530801,1708405873923,-500.0,0.00037112,2]
[314530802,1708405873932,-500.0,0.00037112,2]
[314530803,1708405873941,-500.0,0.00037112,2]
[314530804,1708405873951,-500.0,0.00037112,2]
[314530805,1708405873961,-500.0,0.00037112,2]
[314530806,1708405873971,-500.0,0.00037112,2]
[314530807,1708405873982,-225.14968176,0.00037112,2]
[314530808,1708405873991,-500.0,0.00037112,2]
[314530809,1708405874000,-500.0,0.00037112,2]
[314530810,1708405874010,-500.0,0.00037112,2]
[314530811,1708405874021,-500.0,0.00037112,2]
[314530812,1708405874031,-500.0,0.00037112,2]
[314530813,1708405874041,-500.0,0.00037112,2]
[314530814,1708405874050,-500.0,0.00037112,2]
[314530815,1708405874060,-500.0,0.00037112,2]
[314530816,1708405874069,-500.0,0.00037112,2]
[314530817,1708405874078,-500.0,0.00037112,2]
[314530818,1708405874087,-303.36222152,0.00037112,2]
[314530819,1708405874096,-500.0,0.00037112,2]
[314530820,1708405874106,-500.0,0.00037112,2]
[314530821,1708405874114,-517.91,0.00037112,2]
[314530822,1708405874123,-500.0,0.00037112,2]
[314530823,1708405874133,-249.61685406,0.00037112,2]
[314530824,1708405874142,-500.0,0.00037112,2]
[314530825,1708405874151,-500.0,0.00037112,2]
[314530826,1708405874161,-500.0,0.00037112,2]
[314530827,1708405874170,-500.0,0.00037112,2]
[314530828,1708405874179,-500.0,0.00037112,2]
[314530829,1708405874189,-500.0,0.00037112,2]
[314530830,1708405874198,-500.0,0.00037112,2]
[314530831,1708405874207,-500.0,0.00037112,2]
[314530832,1708405874217,-503.07,0.00037112,2]
[314530833,1708405874227,-500.0,0.00037112,2]
[314530834,1708405874236,-500.0,0.00037112,2]
[314530835,1708405874245,-500.0,0.00037112,2]
[314530836,1708405874255,-857.77,0.00037112,2]
[314530837,1708405874265,-500.0,0.00037112,2]
[314530838,1708405874275,-610.42,0.00037112,2]
[314530839,1708405874285,-500.0,0.00037112,2]
[314530840,1708405874294,-500.0,0.00037112,2]
[314530841,1708405874304,-500.0,0.00037112,2]
[314530842,1708405874313,-500.0,0.00037112,2]
[314530843,1708405874322,-500.0,0.00037112,2]
[314530844,1708405874331,-500.0,0.00037112,2]
[314530845,1708405874340,-584.52,0.00037112,2]
[314530846,1708405874349,-622.47,0.00037112,2]
[314530847,1708405874359,-500.0,0.00037112,2]
[314530848,1708405874369,-500.0,0.00037112,2]
[314530849,1708405874378,-176.29,0.00037112,2]
[314530850,1708405874387,-500.0,0.00037112,2]
[314530851,1708405874396,-500.0,0.00037112,2]
[314530852,1708405874406,-500.0,0.00037112,2]